lending/lending_fUSD_20240703
["ID","MTS","AMOUNT","RATE_DAILY","PERIOD"]
[331010064,1720002657275,-500.0,0.00021917,4]
[331010065,1720002657285,-294.0,0.00021917,2]
[331010066,1720002657295,-500.0,0.00021917,4]
[331010067,1720002657304,-500.0,0.00021917,4]
[331010068,1720002657313,-500.0,0.00021917,4]
[331010069,1720002657323,-500.0,0.00021917,4]
[331010070,1720002657334,-500.0,0.00021917,4]
[331010071,1720002657348,-500.0,0.00021917,4]
[331010072,1720002657358,-500.0,0.00021917,4]
[331010073,1720002657367,-151.0,0.00021917,2]
[331010074,1720002657377,-500.0,0.00021917,4]
[331010075,1720002657386,-500.0,0.00021917,4]
[331010076,1720002657396,-500.0,0.00021917,4]
[331010077,1720002657405,-500.0,0.00021917,4]
[331010078,1720002657415,-500.0,0.00021917,4]
[331010079,1720002657424,-151.0,0.00021917,2]
[331010080,1720002657434,-151.0,0.00021917,2]
[331010081,1720002657443,-500.0,0.00021917,4]
[331010082,1720002657453,-151.0,0.00021917,2]
[331010083,1720002657463,-500.0,0.00021917,4]
[331010084,1720002657472,-225.31512158,0.00021917,4]
[331010085,1720002657482,-338.76421578,0.00021917,4]
[331010086,1720002657543,-161.23578422,0.00021917,4]
[331010087,1720002657557,-500.0,0.00021917,4]
[331010088,1720002657567,-500.0,0.00021917,4]
[331010089,1720002657580,-500.0,0.00021917,4]
[331010090,1720002657593,-500.0,0.00021917,4]
[331010091,1720002657602,-1478.27,0.00021917,4]
[331010092,1720002657612,-500.0,0.00021917,4]
[331010093,1720002657622,-500.0,0.00021917,4]
[331010094,1720002657632,-500.0,0.00021917,4]
[331010095,1720002657643,-1478.27,0.00021917,4]
[331010096,1720002657653,-500.0,0.00021917,4]
[331010097,1720002657663,-248.95159196,0.00021917,4]
[331010098,1720002657673,-547.65,0.00021917,4]
[331010099,1720002657684,-1478.27,0.00021917,4]
[331010100,1720002657695,-151.0,0.00021917,2]
[331010101,1720002657705,-1478.27,0.00021917,4]
[331010102,1720002657716,-1478.27,0.00021917,4]
[331010103,1720002657726,-151.0,0.00021917,2]
[331010104,1720002657738,-151.0,0.00021917,2]
[331010105,1720002657748,-1126.79435405,0.00021917,4]
[331010106,1720002657768,-351.47564595,0.00021917,4]
[331010107,1720002657779,-151.0,0.00021917,2]
[331010108,1720002657789,-171.96435405,0.00021917,4]
[331010109,1720002657938,-328.03564595,0.00021917,4]
[331010110,1720002657948,-500.0,0.00021917,4]
[331010111,1720002657958,-500.0,0.00021917,4]
[331010112,1720002657968,-500.0,0.00021917,4]
[331010113,1720002657977,-500.0,0.00021917,4]
[331010114,1720002657987,-500.0,0.00021917,4]
[331010115,1720002657996,-500.0,0.00021917,4]
[331010116,1720002658008,-498.02618474,0.00021917,4]
[331010117,1720002658020,-500.0,0.00021917,4]
[331010118,1720002658030,-500.0,0.00021917,4]
[331010119,1720002658039,-555.2,0.00021917,4]
[331010120,1720002658049,-500.0,0.00021917,4]
[331010121,1720002658059,-500.0,0.00021917,4]
[331010122,1720002658069,-500.0,0.00021917,4]
[331010123,1720002658079,-500.0,0.00021917,4]
[331010124,1720002658089,-151.0,0.00021917,2]
[331010125,1720002658099,-500.0,0.00021917,4]
[331010126,1720002658110,-500.0,0.00021917,4]
[331010127,1720002658120,-567.54,0.00021917,4]
[331010128,1720002658130,-500.0,0.00021917,4]
[331010129,1720002658140,-151.0,0.00021917,2]
[331010130,1720002658150,-500.0,0.00021917,4]
[331010131,1720002658159,-442.38,0.00021917,4]
[331010132,1720002658168,-151.0,0.00021917,2]
[331010133,1720002658177,-151.0,0.00021917,2]
[331010134,1720002658187,-500.0,0.00021917,4]
[331010135,1720002658196,-500.0,0.00021917,4]
[331010136,1720002658205,-53.11816931,0.00021917,4]
[331010137,1720002658228,-446.88183069,0.00021917,4]
[331010138,1720002658237,-500.0,0.00021917,4]
[331010139,1720002658247,-500.0,0.00021917,4]
[331010140,1720002658256,-500.0,0.00021917,4]
[331010141,1720002658266,-500.0,0.00021917,4]
[331010142,1720002658275,-500.0,0.00021917,4]
[331010143,1720002658285,-500.0,0.00021917,4]
[331010144,1720002658294,-500.0,0.00021917,4]
[331010145,1720002658304,-500.0,0.00021917,4]
[331010146,1720002658313,-500.0,0.00021917,4]
[331010147,1720002658323,-502.9075857,0.00021917,4]
[331010148,1720002658333,-120.66512329,0.00021917,4]
[331010149,1720002658382,-412.91374763,0.000218,5]
[331010150,1720002658394,-1534.69536465,0.000218,5]
[331010151,1720002658406,-3378.39088772,0.000218,5]
[331010152,1720002658417,-379.33487671,0.00021917,4]
[331010153,1720002658426,-500.0,0.00021917,4]
[331010154,1720002658436,-500.0,0.00021917,4]
[331010155,1720002658445,-500.0,0.00021917,4]
[331010156,1720002658455,-500.0,0.00021917,4]
[331010157,1720002658464,-500.0,0.00021917,4]
[331010158,1720002658474,-500.0,0.00021917,4]
[331010159,1720002658483,-500.0,0.00021917,4]
[331010160,1720002658493,-76.42536578,0.00021917,4]
[331010161,1720002658507,-496.98463422,0.00021917,4]
[331010162,1720002658517,-94.57988328,0.00021917,4]
[331010163,1720002658529,-405.42011672,0.00021917,4]
[331010164,1720002658539,-299.37988328,0.00021917,4]
[331010165,1720002658551,-200.62011672,0.00021917,4]
[331010166,1720002658560,-500.0,0.00021917,4]
[331010167,1720002658570,-500.0,0.00021917,4]
[331010168,1720002658581,-500.0,0.00021917,4]
[331010169,1720002658591,-500.0,0.00021917,4]
[331010170,1720002658601,-500.0,0.00021917,4]
[331010171,1720002658611,-500.0,0.00021917,4]
[331010172,1720002658620,-500.0,0.00021917,4]
[331010173,1720002658630,-500.0,0.00021917,4]
[331010174,1720002658640,-500.0,0.00021917,4]
[331010175,1720002658651,-500.0,0.00021917,4]
[331010176,1720002658661,-500.0,0.00021917,4]
[331010177,1720002658671,-500.0,0.00021917,4]
[331010178,1720002658683,-500.0,0.00021917,4]
[331010179,1720002658693,-500.0,0.00021917,4]
[331010180,1720002658703,-500.0,0.00021917,4]
[331010181,1720002658712,-500.0,0.00021917,4]
[331010182,1720002658722,-500.0,0.00021917,4]
[331010183,1720002658734,-501.67315245,0.00021917,4]
[331010184,1720002658743,-500.0,0.00021917,4]
[331010185,1720002658756,-500.0,0.00021917,4]
[331010186,1720002658766,-644.53757414,0.00021917,4]
[331010187,1720002658776,-500.0,0.00021917,4]
[331010188,1720002658785,-500.0,0.00021917,4]
[331010189,1720002658795,-500.0,0.00021917,4]
[331010190,1720002658804,-500.0,0.00021917,4]
[331010191,1720002658813,-500.0,0.00021917,4]
[331010192,1720002658823,-500.0,0.00021917,4]
[331010193,1720002658833,-500.0,0.00021917,4]
[331010194,1720002658842,-500.0,0.00021917,4]
[331010195,1720002658852,-500.0,0.00021917,4]
[331010196,1720002658861,-500.0,0.00021917,4]
[331010197,1720002658870,-500.0,0.00021917,4]
[331010198,1720002658879,-500.0,0.00021917,4]
[331010199,1720002658889,-500.0,0.00021917,4]
[331010200,1720002658899,-500.0,0.00021917,4]
[331010201,1720002658907,-500.0,0.00021917,4]
[331010202,1720002658917,-200.56860783,0.00021917,4]
[331010203,1720002658926,-500.0,0.00021917,4]
[331010204,1720002658936,-500.0,0.00021917,4]
[331010205,1720002658945,-500.0,0.00021917,4]
[331010206,1720002658955,-500.0,0.00021917,4]
[331010207,1720002658964,-500.0,0.00021917,4]
[331010208,1720002658974,-500.0,0.00021917,4]
[331010209,1720002658983,-172.93061085,0.00021917,4]
[331010210,1720002658993,-500.0,0.00021917,4]
[331010211,1720002659004,-241.48876039,0.00021917,4]
[331010212,1720002659015,-500.0,0.00021917,4]
[331010213,1720002659026,-500.0,0.00021917,4]
[331010214,1720002659038,-500.0,0.00021917,4]
[331010215,1720002659048,-150.0,0.00021917,4]
[331010216,1720002659058,-501.73367241,0.00021917,4]
[331010217,1720002659069,-150.0,0.00021917,4]
[331010218,1720002659078,-500.0,0.00021917,4]
[331010219,1720002659087,-252.21,0.00021917,4]
[331010220,1720002659097,-500.0,0.00021917,4]
[331010221,1720002659108,-500.0,0.00021917,4]
[331010222,1720002659118,-500.0,0.00021917,4]
[331010223,1720002659127,-500.0,0.00021917,4]
[331010224,1720002659137,-461.01,0.00021917,4]
[331010225,1720002659147,-500.0,0.00021917,4]
[331010226,1720002659157,-500.0,0.00021917,4]
[331010227,1720002659166,-500.0,0.00021917,4]
[331010228,1720002659176,-500.0,0.00021917,4]
[331010229,1720002659186,-500.0,0.00021917,4]
[331010230,1720002659196,-500.0,0.00021917,4]
[331010231,1720002659206,-220.47,0.00021917,4]
[331010232,1720002659215,-500.0,0.00021917,4]
[331010233,1720002659224,-500.0,0.00021917,4]
[331010234,1720002659234,-500.0,0.00021917,4]
[331010235,1720002659243,-500.0,0.00021917,4]
[331010236,1720002659253,-500.0,0.00021917,4]
[331010237,1720002659263,-500.0,0.00021917,4]
[331010238,1720002659273,-502.11210242,0.00021917,4]
[331010239,1720002659282,-500.0,0.00021917,4]
[331010240,1720002659293,-500.0,0.00021917,4]
[331010241,1720002659302,-500.0,0.00021917,4]
[331010242,1720002659312,-500.0,0.00021917,4]
[331010243,1720002659321,-500.0,0.00021917,4]
[331010244,1720002659332,-500.0,0.00021917,4]
[331010245,1720002659342,-500.0,0.00021917,4]
[331010246,1720002659353,-500.0,0.00021917,4]
[331010247,1720002659363,-500.0,0.00021917,4]
[331010248,1720002659374,-269.2,0.00021917,4]
[331010249,1720002659383,-500.0,0.00021917,4]
[331010250,1720002659394,-500.0,0.00021917,4]
[331010251,1720002659404,-500.0,0.00021917,4]
[331010252,1720002659414,-500.0,0.00021917,4]
[331010253,1720002659424,-500.0,0.00021917,4]
[331010254,1720002659434,-213.25,0.00021917,4]
[331010255,1720002659444,-500.0,0.00021917,4]
[331010256,1720002659454,-500.0,0.00021917,4]
[331010257,1720002659464,-500.0,0.00021917,4]
[331010258,1720002659474,-500.0,0.00021917,4]
[331010259,1720002659484,-502.99643853,0.00021917,4]
[331010260,1720002659495,-500.0,0.00021917,4]
[331010261,1720002659505,-500.0,0.00021917,4]
[331010262,1720002659514,-593.1,0.00021917,4]
[331010263,1720002659523,-500.0,0.00021917,4]
[331010264,1720002659534,-500.0,0.00021917,4]
[331010265,1720002659544,-500.0,0.00021917,4]
[331010266,1720002659554,-500.0,0.00021917,4]
[331010267,1720002659563,-500.0,0.00021917,4]
[331010268,1720002659574,-500.0,0.00021917,4]
[331010269,1720002659584,-500.0,0.00021917,4]
[331010270,1720002659594,-500.0,0.00021917,4]
[331010271,1720002659603,-567.27207817,0.00021917,4]
[331010272,1720002659613,-500.0,0.00021917,4]
[331010273,1720002659622,-500.0,0.00021917,4]
[331010274,1720002659631,-500.0,0.00021917,4]
[331010275,1720002659641,-480.07,0.00021917,4]
[331010276,1720002659651,-500.0,0.00021917,4]
[331010277,1720002659660,-500.0,0.00021917,4]
[331010278,1720002659670,-500.0,0.00021917,4]
[331010279,1720002659679,-545.55951808,0.00021917,4]
[331010280,1720002659688,-500.0,0.00021917,4]
[331010281,1720002659698,-500.0,0.00021917,4]
[331010282,1720002659707,-500.0,0.00021917,4]
[331010283,1720002659717,-151.0,0.00021917,2]
[331010284,1720002659727,-500.0,0.00021917,4]
[331010285,1720002659738,-500.0,0.00021917,4]
[331010286,1720002659931,-151.0,0.00021917,2]
[331010287,1720002659941,-500.0,0.00021917,4]
[331010288,1720002659952,-500.0,0.00021917,4]
[331010289,1720002659962,-500.77169969,0.00021917,4]
[331010290,1720002659971,-150.17,0.00021917,4]
[331010291,1720002659980,-500.0,0.00021917,4]
[331010292,1720002659989,-500.0,0.00021917,4]
[331010293,1720002659999,-500.0,0.00021917,4]
[331010294,1720002660011,-500.0,0.00021917,4]
[331010295,1720002660020,-500.0,0.00021917,4]
[331010296,1720002660033,-500.0,0.00021917,4]
[331010297,1720002660043,-425.32,0.00021917,4]
[331010298,1720002660054,-500.0,0.00021917,4]
[331010299,1720002660063,-500.0,0.00021917,4]
[331010300,1720002660072,-214.743321,0.00021917,2]
[331010301,1720002660082,-500.0,0.00021917,4]
[331010302,1720002660091,-500.0,0.00021917,4]
[331010303,1720002660102,-214.743321,0.00021917,2]
[331010304,1720002660111,-500.0,0.00021917,4]
[331010305,1720002660120,-500.0,0.00021917,4]
[331010306,1720002660130,-500.0,0.00021917,4]
[331010307,1720002660139,-731.72,0.00021917,4]
[331010308,1720002660150,-500.0,0.00021917,4]
[331010309,1720002660160,-500.0,0.00021917,4]
[331010310,1720002660170,-500.0,0.00021917,4]
[331010311,1720002660179,-731.72,0.00021917,4]
[331010312,1720002660189,-214.743321,0.00021917,2]
[331010313,1720002660199,-500.0,0.00021917,4]
[331010314,1720002660208,-731.72,0.00021917,4]
[331010315,1720002660217,-500.0,0.00021917,4]
[331010316,1720002660227,-500.0,0.00021917,4]
[331010317,1720002660236,-188.24,0.00021917,4]
[331010318,1720002660245,-214.743321,0.00021917,2]
[331010319,1720002660255,-528.62,0.00021917,4]
[331010320,1720002660264,-731.72,0.00021917,4]
[331010321,1720002660273,-500.0,0.00021917,4]
[331010322,1720002660283,-731.72,0.00021917,4]
[331010323,1720002660293,-500.0,0.00021917,4]
[331010324,1720002660304,-500.0,0.00021917,4]
[331010325,1720002660314,-504.2280372,0.00021917,4]
[331010326,1720002660323,-152.47761122,0.00021917,4]
[331010327,1720002660335,-500.0,0.00021917,4]
[331010328,1720002660345,-731.72,0.00021917,4]
[331010329,1720002660355,-474.69,0.00021917,4]
[331010330,1720002660364,-731.72,0.00021917,4]
[331010331,1720002660374,-731.72,0.00021917,4]
[331010332,1720002660384,-731.72,0.00021917,4]
[331010333,1720002660393,-500.0,0.00021917,4]
[331010334,1720002660403,-731.72,0.00021917,4]
[331010335,1720002660412,-500.0,0.00021917,4]
[331010336,1720002660422,-731.72,0.00021917,4]
[331010337,1720002660431,-500.0,0.00021917,4]
[331010338,1720002660440,-500.0,0.00021917,4]
[331010339,1720002660449,-731.72,0.00021917,4]
[331010340,1720002660459,-500.0,0.00021917,4]
[331010341,1720002660469,-214.743321,0.00021917,2]
[331010342,1720002660478,-500.0,0.00021917,4]
[331010343,1720002660487,-500.0,0.00021917,4]
[331010344,1720002660496,-500.0,0.00021917,4]
[331010345,1720002660506,-214.743321,0.00021917,2]
[331010346,1720002660516,-500.0,0.00021917,4]
[331010347,1720002660525,-731.72,0.00021917,4]
[331010348,1720002660535,-500.0,0.00021917,4]
[331010349,1720002660544,-731.72,0.00021917,4]
[331010350,1720002660554,-214.743321,0.00021917,2]
[331010351,1720002660563,-255.46358384,0.00021917,4]
[331010352,1720002660844,1367.01150639,0.00011041,2]
[331010358,1720002766363,235.89241881,0.00011041,2]
[331010359,1720002766396,74.10758119,0.00011041,2]
[331010360,1720002846288,252.13668244,0.000118,2]
[331010361,1720002846326,1261.60245113,0.000118,2]
[331010362,1720002846364,1057.83182947,0.000118,2]
[331010363,1720002846400,1236.25534969,0.000118,2]
[331010364,1720002846436,1123.22540143,0.000118,2]
[331010365,1720002871768,402.0,0.0001399,30]
[331010366,1720002872279,402.0,0.0001398,30]
[331010367,1720002872749,402.0,0.0001397,30]
[331010369,1720002890759,172.06562567,0.00011199,2]
[331010370,1720002890783,289.60984254,0.00011199,2]
[331010371,1720002923145,430.24174105,0.00011199,2]
[331010372,1720002923242,155.14136228,0.00011199,2]
[331010373,1720002944738,2290.62500792,0.000112,2]
[331010374,1720002944767,10000.0,0.000112,2]
[331010375,1720002944796,10000.0,0.000112,2]
[331010376,1720002944825,6912.90062966,0.000112,2]
[331010377,1720002985265,367.71,0.00011718,2]
[331010378,1720002991803,281.0,0.0001399,30]
[331010379,1720002992283,281.0,0.0001398,30]
[331010380,1720002992825,281.0,0.0001397,30]
[331010383,1720003111116,150.5,0.0001399,30]
[331010384,1720003111585,150.5,0.0001398,30]
[331010385,1720003111629,197.0,0.0001399,30]
[331010386,1720003112217,197.0,0.0001398,30]
[331010387,1720003112831,150.5,0.0001397,30]
[331010388,1720003112951,197.0,0.0001397,30]
[331010389,1720003232024,150.5,0.0001399,30]
[331010390,1720003232504,150.5,0.0001398,30]
[331010391,1720003232973,150.5,0.0001397,30]
[331010392,1720003354689,150.5,0.0001399,30]
[331010393,1720003355429,150.5,0.0001398,30]
[331010394,1720003356039,150.5,0.0001397,30]
[331010396,1720003471659,150.5,0.0001399,30]
[331010397,1720003472146,150.5,0.0001398,30]
[331010398,1720003472600,150.5,0.0001397,30]
[331010399,1720003472888,150.5,0.0001399,30]
[331010400,1720003473384,150.5,0.0001398,30]
[331010401,1720003473952,176.23,0.0001397,30]
[331010402,1720003553878,349.32,0.0001021,2]
[331010403,1720003611130,4167.84,0.00025999,120]
[331010518,1720003655784,4713.4,0.00024649,60]
[331010521,1720003736484,-300.0,0.00012127,2]
[331010522,1720003736524,-169.26,0.00012128,2]
[331010523,1720003736565,-250.0,0.00012128,2]
[331010524,1720003736604,-250.0,0.00012128,2]
[331010525,1720003736646,-180.71,0.00012128,2]
[331010526,1720003736687,-1061.18024133,0.00012128,2]
[331010527,1720003736746,-2211.15024133,0.00012128,2]
[331010528,1720003736898,-1372.56181374,0.00012128,2]
[331010531,1720003774847,300.81313135,0.00011199,2]
[331010535,1720003832110,150.5,0.0001399,30]
[331010577,1720003833187,-300.0,0.00012127,2]
[331010578,1720003833197,-374.0,0.00012128,2]
[331010579,1720003833209,-2936.22872176,0.00012128,2]
[331010580,1720003833223,-5689.22898184,0.00012128,2]
[331010581,1720003833235,-15150.14,0.00012128,2]
[331010582,1720003833245,-302.47,0.00012282,2]
[331010583,1720003833254,-302.47,0.00012316,2]
[331010584,1720003833264,-302.47,0.00012349,2]
[331010585,1720003833274,-302.47,0.00012383,2]
[331010586,1720003833284,-302.47,0.00012417,2]
[331010587,1720003833294,-302.47,0.0001245,2]
[331010588,1720003833303,-349.32,0.00012474,2]
[331010589,1720003833314,-302.47,0.00012484,2]
[331010590,1720003833325,-302.47,0.00012518,2]
[331010591,1720003833335,-302.47,0.00012551,2]
[331010592,1720003833345,-302.47,0.00012585,2]
[331010593,1720003833354,-302.47,0.00012619,2]
[331010594,1720003833364,-302.47,0.00012652,2]
[331010595,1720003833375,-302.47,0.00012686,2]
[331010596,1720003833384,-150.0,0.00012712,2]
[331010597,1720003833393,-302.47,0.0001272,2]
[331010598,1720003833405,-341.06852101,0.00012742,2]
[331010599,1720003833419,-658.93147899,0.00012742,2]
[331010600,1720003833428,-164.65,0.00012742,2]
[331010601,1720003833437,-164.65,0.0001275,2]
[331010602,1720003833447,-302.47,0.00012753,2]
[331010603,1720003833456,-164.65,0.00012758,2]
[331010604,1720003833465,-164.65,0.00012766,2]
[331010605,1720003833475,-164.65,0.00012774,2]
[331010606,1720003833485,-164.65,0.00012782,2]
[331010607,1720003833495,-302.47,0.00012787,2]
[331010608,1720003833505,-164.65,0.0001279,2]
[331010609,1720003833514,-499.99,0.0001279,2]
[331010610,1720003833525,-164.65,0.00012798,2]
[331010611,1720003833535,-164.65,0.00012806,2]
[331010612,1720003833544,-302.47,0.00012821,2]
[331010613,1720003833554,-302.47,0.00012855,2]
[331010614,1720003833563,-302.47,0.00012888,2]
[331010615,1720003833573,-302.47,0.00012922,2]
[331010616,1720003833582,-173.24,0.00013248,2]
[331010617,1720003833592,-420.0,0.00013311,2]
[331010618,1720003833601,-988.46852101,0.00013443,2]
[331010619,1720003833614,-600.0,0.00013443,2]
[331010620,1720003833625,-600.243895,0.00013443,2]
[331010621,1720003833637,-264.21868399,0.00013443,2]
[331010622,1720003833647,-7.08131591,0.00013488,2]
[331010623,1720003833658,-144.05385415,0.00013488,2]
[331010624,1720003833667,-113.64340674,0.00013574,2]
[331010625,1720003833679,-3076.35659326,0.00013574,2]
[331010626,1720003833689,-318.0418514,0.00013622,2]
[331010627,1720003833699,-288.6,0.00013699,2]
[331010628,1720003833708,-359.36,0.00013699,2]
[331010629,1720003833718,-6130.64,0.00013699,2]
[331010630,1720003833727,-647.76565638,0.00013699,2]
[331010631,1720003833738,-1554.48072659,0.00013699,2]
[331010632,1720003833751,-821.72,0.00013699,2]
[331010633,1720003833763,-2899.64000025,0.00013699,2]
[331010634,1720003833775,-593.79961678,0.00013699,2]
[331010635,1720003833784,-19351.40778423,0.00013799,2]
[331010636,1720003833795,-315.04,0.00013799,2]
[331010637,1720003833807,-5530.06602368,0.00013799,2]
[331010638,1720003833851,150.5,0.0001398,30]
[331010639,1720003833902,-1030.24980646,0.00013799,2]
[331010640,1720003833914,-435.0,0.00013799,2]
[331010641,1720003833926,-728.92117432,0.00013799,2]
[331010642,1720003833937,-689.45132476,0.00013799,2]
[331010643,1720003833948,-90975.94646984,0.00013799,2]
[331010644,1720003833960,-20106.10361351,0.00013799,2]
[331010645,1720003833972,-290.664,0.00013799,2]
[331010646,1720003833983,-3460.28210344,0.00013799,2]
[331010647,1720003833995,-264.78577028,0.00013799,2]
[331010648,1720003834007,-101822.08192948,0.00013799,2]
[331010649,1720003834018,-10049.6763,0.00013799,2]
[331010650,1720003834027,-100000.0,0.00013799,2]
[331010651,1720003834037,-2720.99813567,0.00013799,2]
[331010652,1720003834046,-9769.98857953,0.0001387,2]
[331010653,1720003834056,-188.55089132,0.00013889,2]
[331010654,1720003834066,-317.26,0.0001389,3]
[331010655,1720003834075,-188.55089132,0.00013893,2]
[331010656,1720003834085,-188.55089132,0.00013896,2]
[331010657,1720003834094,-202.84047347,0.00013899,2]
[331010658,1720003834104,-188.55089132,0.000139,2]
[331010659,1720003834113,-188.55089132,0.00013903,2]
[331010660,1720003834122,-221.12276999,0.00013979,2]
[331010661,1720003834132,-500.0,0.00013988,2]
[331010662,1720003834142,-326.33153648,0.00013988,2]
[331010663,1720003834151,-139128.09481699,0.00013989,2]
[331010664,1720003834163,-1808.11543806,0.00013989,2]
[331010665,1720003834175,-2406.31287452,0.00013989,2]
[331010666,1720003834187,-418.90217464,0.00013989,2]
[331010667,1720003834198,-801.45830555,0.00013989,2]
[331010668,1720003834209,-781.95019923,0.00013989,2]
[331010669,1720003834221,-2130.44985288,0.00013989,2]
[331010670,1720003834233,-827.13712285,0.00013989,2]
[331010671,1720003834244,-941.26867698,0.00013989,2]
[331010672,1720003834281,270.5,0.0001397,30]
[331010684,1720003838455,-417.84487201,0.00013989,2]
[331010689,1720003838468,-1774.61004283,0.00013989,2]
[331010720,1720003838920,-363.28200171,0.00013989,2]
[331010721,1720003838932,-652.16989619,0.00013989,2]
[331010722,1720003838944,-779.68111054,0.00013989,2]
[331010723,1720003838956,-15480.87706287,0.00013989,2]
[331010724,1720003838967,-344.64227953,0.00013989,2]
[331010725,1720003838979,-6001.0,0.00013989,2]
[331010726,1720003838991,-5243.22356511,0.00013989,2]
[331010727,1720003839003,-857.87690703,0.00013989,2]
[331010728,1720003839014,-1669.07666315,0.00013989,2]
[331010729,1720003839028,-531.79482725,0.00013989,2]
[331010730,1720003839043,-40460.0,0.00013989,2]
[331010731,1720003839056,-816.70025,0.00013989,2]
[331010732,1720003839068,-298.8682536,0.00013989,2]
[331010733,1720003839081,-607.89508292,0.00013989,2]
[331010734,1720003839093,-600.68898,0.00013989,2]
[331010735,1720003839106,-322032.68665412,0.00013989,2]
[331010736,1720003839117,-327755.56063651,0.00013989,2]
[331010738,1720003839488,-6595.40799187,0.00013889,2]
[331010740,1720003839500,-23490.119859,0.00013989,2]
[331010742,1720003839512,-2307.51909693,0.00013989,2]
[331010743,1720003839524,-340072.91965419,0.00013989,2]
[331010744,1720003839537,-469.87051086,0.00013999,2]
[331010745,1720003839547,-283.21235355,0.00013999,2]
[331010746,1720003839556,-500.0,0.00013999,2]
[331010747,1720003839567,-500.0,0.00013999,2]
[331010748,1720003839577,-537.77781543,0.00013999,2]
[331010749,1720003839587,-962.17219753,0.00013999,2]
[331010750,1720003839598,-1948447.73701963,0.00014,2]
[331010751,1720003839610,-33432.70063645,0.00014,2]
[331010752,1720003839621,-5878.0,0.00014,2]
[331010753,1720003839631,-1000.0,0.00014335,2]
[331010754,1720003839641,-288.6,0.00014384,2]
[331010755,1720003839652,-587.0,0.0001461,2]
[331010756,1720003839662,-2720.9981356,0.00014621,2]
[331010757,1720003839672,-629.05260508,0.000147,2]
[331010758,1720003839683,-349.32,0.00014738,2]
[331010759,1720003839693,-962.17219746,0.00014807,2]
[331010760,1720003839703,-15433.33883135,0.00014899,2]
[331010761,1720003839713,-5000.0,0.00015,2]
[331010762,1720003839723,-737.1110252,0.00015,2]
[331010763,1720003839733,-807496.36825311,0.00015,2]
[331010767,1720003840111,-46973.01708937,0.00015,2]
[331010768,1720003840123,-15338.1407222,0.00015,2]
[331010769,1720003840135,-598.0,0.00015,2]
[331010770,1720003840147,-1832.28241582,0.00015,2]
[331010782,1720003840948,-66982.38,0.00015,2]
[331010783,1720003840960,-283.63798548,0.00015,2]
[331010784,1720003840972,-13258.1146,0.00015,2]
[331010785,1720003840984,-1043.21965598,0.00015,2]
[331010786,1720003840995,-503.51695425,0.00015,2]
[331010787,1720003841006,-57531.0257182,0.00015,2]
[331010788,1720003841018,-1129.01709119,0.00015,2]
[331010789,1720003841031,-486.21319913,0.00015,2]
[331010790,1720003841044,-676.47483956,0.00015,2]
[331010791,1720003841056,-289.88620354,0.00015,2]
[331010792,1720003841395,-288.43087492,0.00015,2]
[331010794,1720003841409,-5985.0,0.00015,2]
[331010797,1720003841421,-22870.23458186,0.00015,2]
[331010970,1720003843657,-1216.05064,0.00015,2]
[331010975,1720003843670,-498.7999998,0.00015,2]